Cogmind - Beta 10.2 @@@ ROGUE MODE // 2021.02.28 @ 18:56:01 Player: TheGreatBorealis Result: Self-destructed Performance ------------- Evolutions (2) 1000 Regions Visited (6) 1200 Robots Destroyed (47) 235 Value Destroyed (1316) 1316 Prototype IDs (1) 20 Alien Tech Used (0) 0 Bonus (0) 0 TOTAL SCORE: 3771 Bonus ------- None Cogmind --------- Core Integrity 319/550 Matter 296/300 Energy 265/265 System Corruption 9% Temperature Cool (22) Movement Core (800) Ox15 Location -8/Storage Parts ------- > --- POWER (1) -------- Improved Ion Engine > --- PROPULSION (4) --- Light Treads Light Treads Medium Treads > --- UTILITY (4) ------ Improved Heat Sink Large Storage Unit Large Storage Unit Light Armor Plating > --- WEAPON (2) ------- Hammer Katana > --- INVENTORY (16) --- Light Deuterium Engine Light Nuclear Core Light Treads Light Treads Light Treads Medium Treads Compact Wheel Heat Sink Heat Sink Improved Heat Sink Large Storage Unit Large Storage Unit Experimental Sensor Array Melee Analysis Suite Beam Rifle Proton Missile Launcher Peak State ------------ > --- POWER ------------ Improved Ion Engine > --- PROPULSION ------- Medium Treads Medium Treads Medium Treads Medium Treads > --- UTILITY ---------- Heat Sink Large Storage Unit Large Storage Unit Improved Sensor Array > --- WEAPON ----------- Heavy Particle Cannon Heavy Assault Rifle > --- INVENTORY -------- Ion Engine Ion Engine Light Ion Engine Light Deuterium Engine Light Treads Light Treads Light Treads Compact Wheel Heat Sink Large Storage Unit Large Storage Unit Experimental Sensor Array Pulse Rifle Proton Missile Launcher Hammer Katana [Rating: 31] Favorites ----------- Power Ion Engine Engine Ion Engine Propulsion Medium Treads Treads Medium Treads Leg Aluminum Leg Wheel Compact Wheel Utility Large Storage Unit Device Improved Sensor Array Storage Large Storage Unit Protection Light Armor Plating Weapon Small Laser Energy Gun Small Laser Energy Cannon Heavy Particle Cannon Ballistic Gun Heavy Assault Rifle Launcher Grenade Launcher Impact Weapon Hammer Slashing Weapon Katana Build | -11 -10 -10 -10 -9 -8 -8 ------- Run | Scr Mat Min Exi Min Mat Sto Slots Evolved 4 | . . . . . 4 . Power . | . . . . . . . Propulsion 2 | . . . . . 2 . Utility 2 | . . . . . 2 . Weapon . | . . . . . . . Parts Attached 60 | . 12 2 . . 21 25 Power 8 | . 1 . . . 2 5 Engine 8 | . 1 . . . 2 5 Core . | . . . . . . . Reactor . | . . . . . . . Propulsion 21 | . 5 . . . 7 9 Treads 16 | . 3 . . . 5 8 Leg . | . . . . . . . Wheel 5 | . 2 . . . 2 1 Hover . | . . . . . . . Flight . | . . . . . . . Utility 12 | . 3 . . . 4 5 Device 6 | . . . . . 4 2 Storage 4 | . 3 . . . . 1 Processor . | . . . . . . . Hackware . | . . . . . . . Protection 2 | . . . . . . 2 Artifact . | . . . . . . . Weapon 19 | . 3 2 . . 8 6 Energy Gun 8 | . 3 1 . . 3 1 Energy Cannon 2 | . . . . . 2 . Ballistic Gun 3 | . . . . . 2 1 Ballistic Cannon . | . . . . . . . Launcher 3 | . . 1 . . 1 1 Special Weapon . | . . . . . . . Impact Weapon 1 | . . . . . . 1 Slashing Weapon 2 | . . . . . . 2 Piercing Weapon . | . . . . . . . Special Melee Weapon . | . . . . . . . Unidentified Prototypes 1 | . . . . . 1 . Parts Lost 19 | . 4 . . . 4 11 Power 2 | . . . . . . 2 Propulsion 5 | . . . . . 1 4 Utility 3 | . . . . . 1 2 Weapon 9 | . 4 . . . 2 3 Highest Loss Streak 4 | . 2 . . . 4 4 Average Slot Usage (%) 94 | . 91 88 100 100 92 98 Engine 11 | . 14 14 14 14 9 8 Treads 22 | . 18 14 14 14 29 29 Wheel 9 | . 8 14 14 14 6 6 Device 6 | . . . . . 11 13 Storage 21 | . 21 28 28 28 18 18 Protection 1 | . . . . . . 4 Energy Gun 12 | . 26 14 14 14 12 . Energy Cannon 1 | . . . . . 3 2 Launcher 3 | . . 3 14 14 . . Impact Weapon 1 | . . . . . . 5 Slashing Weapon 1 | . . . . . . 5 Naked Turns . | . . . . . . . Heaviest Build 54 | 12 41 41 41 41 50 54 Greatest Support 112 | 20 40 16 16 16 112 112 Greatest Overweight (x) 15 | . 2 2 2 2 2 15 Average Overweight (x) 1 | . . 2 2 2 1 1 Largest Inventory Capacity 16 | . 16 16 16 16 16 16 Average Capacity 14 | . 9 16 16 16 16 16 Most Carried 16 | . 7 9 9 10 16 16 Average Carried 11 | . 5 7 9 9 15 15 Final Capacity 16 | 6 16 16 16 16 16 16 Final Carried 16 | 6 7 9 9 10 16 16 Class Distribution -------------------- 70% | Mutant 29% | Scavenger-Mutant Dominant Class ---------------- Mutant | -10/Materials Mutant | -10/Mines Mutant | -10/Exiles Mutant | -9/Mines Mutant | -8/Materials Scavenger-Mutant | -8/Storage Resources | -11 -10 -10 -10 -9 -8 -8 ----------- Run | Scr Mat Min Exi Min Mat Sto Matter Collected 882 | 200 67 65 . 12 225 313 Remotely . | . . . . . . . Salvage Created 1741 | . 160 79 . 18 519 965 Parts 88 | . 10 3 . 3 26 46 Haulers Intercepted 1 | . . . . . 1 . Recyclers Shooed . | . . . . . . . Parts Field Recycled . | . . . . . . . Retrieved Matter . | . . . . . . . Parts Self-Destructed . | . . . . . . . Prevented . | . . . . . . . Kills | -11 -10 -10 -10 -9 -8 -8 ------- Run | Scr Mat Min Exi Min Mat Sto Combat Hostiles Destroyed 39 | . 4 3 . 3 10 19 Melee 8 | . . . . . . 8 Guns 14 | . 4 . . 2 4 4 Cannons 7 | . . . . . 4 3 AOE 9 | . . 3 . 1 2 3 Classes Destroyed 10 | . 4 1 . . 3 2 Builder 1 | . . . . . . 1 Hauler 1 | . . . . . 1 . Recycler 2 | . . 1 . . . 1 Operator 1 | . 1 . . . . . Watcher 3 | . 1 . . . 2 . Swarmer 15 | . 1 3 . 3 4 4 Grunt 12 | . 3 . . . 2 7 Brawler 3 | . . . . . 1 2 Duelist 2 | . . . . . . 2 Sentry 7 | . . . . . 3 4 Best Kill Streak 6 | . 2 4 . 3 5 6 Combat Bots Only 6 | . 2 3 . 3 4 6 Max Kills in Single Turn 2 | . 1 2 . 2 2 2 Gunslinging . | . . . . . . . Exploded 2 | . . 1 . 1 2 2 Melee 1 | . . . . . . 1 Uniques/NPCs Destroyed . | . . . . . . . Combat | -11 -10 -10 -10 -9 -8 -8 -------- Run | Scr Mat Min Exi Min Mat Sto Damage Taken 2491 | . 539 19 . 8 440 1485 Core 326 | . 95 . . . 53 178 Absorbed by Shields . | . . . . . . . Core Remaining (%) 81 | 100 . . . 62 . . Volleys Fired 92 | . 25 3 . 2 31 31 Largest 2 | . 2 2 . 2 2 2 Hottest 125 | . 100 70 . 70 125 114 Shots Fired 175 | . 48 6 . 4 60 57 Gun 136 | . 48 3 . 2 45 38 Cannon 29 | . . . . . 13 16 Launcher 10 | . . 3 . 2 2 3 Special . | . . . . . . . Kinetic 30 | . . . . . 4 26 Thermal 129 | . 42 3 . 2 54 28 Explosive 5 | . . 3 . 2 . . Electromagnetic 11 | . 6 . . . 2 3 Robot Hit Streak 29 | . 10 2 . 4 16 29 Robot Miss Streak 3 | . 3 . . . 1 1 Penetration Max . | . . . . . . . Secondary Targets 1 | . . . . . . 1 Max Gunslinging Chain 1 | . . . . . . 1 Shots Hit Robots 167 | . 31 2 . 2 46 86 Core Hits 75 | . 11 9 . 3 20 32 Critical Hits 1 | . . . . . . 1 Critical Kills . | . . . . . . . Critical Parts Destroyed 1 | . . . . . . 1 Melee Attacks 46 | . . . . . . 46 Impact 11 | . . . . . . 11 Slashing 35 | . . . . . . 35 Piercing . | . . . . . . . Sneak Attacks 1 | . . . . . . 1 Combat Hostiles . | . . . . . . . Follow-up Attacks 4 | . . . . . . 4 Damage Inflicted 3558 | . 409 165 . 141 733 2110 Guns 1315 | . 349 11 . 22 410 523 Cannons 600 | . . . . . 250 350 Explosions 484 | . 36 154 . 119 73 102 Melee 1135 | . . . . . . 1135 Ramming 24 | . 24 . . . . . Kinetic 340 | . . . . . 18 322 Thermal 1563 | . 318 11 . 22 642 570 Explosive 273 | . . 154 . 119 . . Electromagnetic 223 | . 67 . . . 73 83 Impact 145 | . . . . . . 145 Slashing 990 | . . . . . . 990 Piercing . | . . . . . . . Highest Corruption 9 | . . . . . . 9 Average Corruption 8 | . . . . . . 8 Corruption Purged . | . . . . . . . Effects 12 | . . . . . . 12 Message Errors 2 | . . . . . . 2 Matter Fused 1 | . . . . . . 1 Heat Flow Errors 2 | . . . . . . 2 Energy Discharges 1 | . . . . . . 1 Parts Rejected 1 | . . . . . . 1 Data Loss (minor) 1 | . . . . . . 1 Data Loss (major) 1 | . . . . . . 1 Targeting Errors 3 | . . . . . . 3 Overload Shots . | . . . . . . . Overflow Damage 71 | . . 7 . . 3 61 Projectiles 13 | . . . . . 3 10 Explosions 7 | . . 7 . . . . Melee 51 | . . . . . . 51 Knockbacks . | . . . . . . . Impact . | . . . . . . . Kinetic . | . . . . . . . Secondary . | . . . . . . . Self-Inflicted Damage 24 | . 24 . . . . . Shots 1 | . 1 . . . . . Rammed 6 | . 6 . . . . . Targets Rammed 7 | . 7 . . . . . Kicked . | . . . . . . . Crushed 1 | . 1 . . . . . Highest Temperature 203 | . 203 27 . 18 48 116 Average Temperature 56 | . 93 14 . 10 17 14 Received Heat Transfer 933 | . 240 . . . 153 540 Siege Activations . | . . . . . . . Robots Corrupted . | . . . . . . . Combat Hostiles . | . . . . . . . Parts Fried 2 | . . . . . . 2 Impact Corruptions 1 | . . . . . . 1 Robots Melted . | . . . . . . . Combat Hostiles . | . . . . . . . Parts Melted 7 | . 2 . . . 4 1 Heat Transferred 3376 | . 818 25 . 50 1471 1012 Parts Sabotaged . | . . . . . . . Parts Stolen . | . . . . . . . Parts Stripped . | . . . . . . . Power Chain Reactions 2 | . 1 . . . . 1 Missiles Intercepted . | . . . . . . . Alert | -11 -10 -10 -10 -9 -8 -8 ------- Run | Scr Mat Min Exi Min Mat Sto Peak Influence 342 | . 147 75 . 85 342 315 Initial 78 | . . . . . 33 78 Average 113 | . 59 16 . 29 172 178 Maximum Alert Level 1 | . . . . . 1 1 Low Security (%) 74 | . 100 100 . 100 64 44 Level 1 25 | . . . . . 35 55 Level 2 . | . . . . . . . Level 3 . | . . . . . . . Level 4 . | . . . . . . . Level 5 . | . . . . . . . High Security . | . . . . . . . Max Security . | . . . . . . . Squads Dispatched 7 | . 2 . . . . 5 Investigation 1 | . 1 . . . . . Extermination . | . . . . . . . Reinforcement 3 | . 1 . . . . 2 Assault . | . . . . . . . Garrison 3 | . . . . . . 3 Intercept . | . . . . . . . Construction Impeded 1 | . . . . . . 1 Haulers Reinforced . | . . . . . . . Stealth | -11 -10 -10 -10 -9 -8 -8 --------- Run | Scr Mat Min Exi Min Mat Sto Distress Signals 5 | . 1 . . . 4 . Communications Jammed . | . . . . . . . Distress Signals . | . . . . . . . Times Spotted 65 | . 18 2 . 3 17 25 Peak Tracking Total 6 | . 5 2 . 3 5 6 Tactical Retreats 5 | . 2 . . . 1 2 Traps | -11 -10 -10 -10 -9 -8 -8 ------- Run | Scr Mat Min Exi Min Mat Sto Traps Triggered 3 | . . . . . . 3 Indirectly . | . . . . . . . Trap Hack Attempts . | . . . . . . . Triggered . | . . . . . . . Disarmed 6 | . 6 . . . . . Reprogrammed . | . . . . . . . Reused . | . . . . . . . Traps Extracted . | . . . . . . . Installed . | . . . . . . . Triggered 2 | . 2 . . . . . Machines | -11 -10 -10 -10 -9 -8 -8 ---------- Run | Scr Mat Min Exi Min Mat Sto Machines Disabled 2 | . . . . 1 . 1 Max in Single Turn 1 | . . . . 1 . 1 Machines Sabotaged . | . . . . . . . Garrisons Compromised . | . . . . . . . Overloaded Fab Kills . | . . . . . . . Fab Network Shutdowns . | . . . . . . . Hacking | -11 -10 -10 -10 -9 -8 -8 --------- Run | Scr Mat Min Exi Min Mat Sto Machines Accessed 8 | . 4 . 2 . 1 1 Terminals 6 | . 4 . . . 1 1 Fabricators . | . . . . . . . Repair Stations . | . . . . . . . Recycling Units . | . . . . . . . Scanalyzers . | . . . . . . . Garrison Access . | . . . . . . . Total Hacks 24 | . 14 . 5 . 2 3 Successful 15 | . 7 . 5 . 2 1 Failed 9 | . 7 . . . . 2 Catastrophic 2 | . 2 . . . . . Database Lockouts . | . . . . . . . Manual 8 | . 6 . . . 1 1 Terminals 19 | . 14 . . . 2 3 Fabricators . | . . . . . . . Repair Stations . | . . . . . . . Recycling Units . | . . . . . . . Scanalyzers . | . . . . . . . Garrison Access . | . . . . . . . Terminal Hacks 12 | . 5 . 5 . 1 1 Record 5 | . . . 5 . . . Alert Level 1 | . . . . . 1 . Unreport Threat 1 | . . . . . . 1 Locate Traps 2 | . 2 . . . . . Disarm Traps 1 | . 1 . . . . . Dispatch Records 1 | . 1 . . . . . Zone Layout 1 | . 1 . . . . . Fabricator Hacks . | . . . . . . . Repair Station Hacks . | . . . . . . . Recycling Unit Hacks . | . . . . . . . Scanalyzer . | . . . . . . . Garrison Access Hacks . | . . . . . . . Unauthorized Hacks 3 | . 2 . . . 1 . Terminals 3 | . 2 . . . 1 . Track 2 | . 1 . . . 1 . Botnet 1 | . 1 . . . . . Fabricators . | . . . . . . . Repair Stations . | . . . . . . . Recycling Units . | . . . . . . . Scanalyzers . | . . . . . . . Garrison Access . | . . . . . . . Data Cores Recovered . | . . . . . . . Used . | . . . . . . . Hacking Detections 6 | . 4 . . . 1 1 Full Trace Events 1 | . 1 . . . . . Feedback Events . | . . . . . . . Feedback Blocked . | . . . . . . . Robot Schematics Acquired . | . . . . . . . Robots Built . | . . . . . . . Matter . | . . . . . . . Time . | . . . . . . . Total Robot Build Rating . | . . . . . . . Part Schematics Acquired . | . . . . . . . Parts Built . | . . . . . . . Matter . | . . . . . . . Time . | . . . . . . . Total Part Build Rating . | . . . . . . . Parts Repaired . | . . . . . . . Time . | . . . . . . . Parts Recycled . | . . . . . . . Recycled Matter . | . . . . . . . Retrieved Matter . | . . . . . . . Retrieved Components . | . . . . . . . Parts Scanalyzed . | . . . . . . . Part Schematics Acquired . | . . . . . . . Parts Damaged . | . . . . . . . Bothacking | -11 -10 -10 -10 -9 -8 -8 ------------ Run | Scr Mat Min Exi Min Mat Sto Used RIF Installer . | . . . . . . . Robots Hacked . | . . . . . . . Non-combat . | . . . . . . . Combat . | . . . . . . . Robot Hacks Applied . | . . . . . . . Relay Couplers Released . | . . . . . . . Robots Rewired . | . . . . . . . Allies Hacked . | . . . . . . . Hacks Repelled . | . . . . . . . Allies | -11 -10 -10 -10 -9 -8 -8 -------- Run | Scr Mat Min Exi Min Mat Sto Total Allies . | . . . . . . . Largest Group . | . . . . . . . Highest-Rated Group . | . . . . . . . Highest-Rated Ally . | . . . . . . . Total Orders . | . . . . . . . Ally Attacks . | . . . . . . . Total Damage . | . . . . . . . Kills . | . . . . . . . Allies Corrupted . | . . . . . . . Allies Melted . | . . . . . . . Intel | -11 -10 -10 -10 -9 -8 -8 ------- Run | Scr Mat Min Exi Min Mat Sto Robot Analysis Total . | . . . . . . . Derelict Logs Recovered 2 | . . . . 2 . . Drone Launches . | . . . . . . . Drone Recoveries . | . . . . . . . Exploration | -11 -10 -10 -10 -9 -8 -8 ------------- Run | Scr Mat Min Exi Min Mat Sto Turns Passed 2484 | . 533 316 290 174 444 727 Spaces Moved 1414 | 1 305 246 242 140 172 308 Core 2 | . . . . . . 2 Treads 252 | . 47 . . . 63 142 Legs 26 | 1 25 . . . . . Wheels 1134 | . 233 246 242 140 109 164 Hover . | . . . . . . . Flight . | . . . . . . . Fastest Speed 100 | 120 100 120 120 120 120 120 Average Speed 126 | 120 120 120 120 120 134 142 Slowest Speed 800 | 120 180 120 120 120 160 800 Overloaded Moves . | . . . . . . . Propulsion Burnouts . | . . . . . . . Robots Hopped . | . . . . . . . Cave-ins Triggered . | . . . . . . . Exploration Rate (%) 38 | 2 49 45 67 38 15 51 Regions Visited 6 Branch Regions 4 Pre-discovered Areas 2 | . . . 1 1 . . Known Exits Taken 1 | . . . . 1 . . Unknown Exits Taken 5 | 1 1 1 1 . 1 . Scrap Searched 2 | . . 1 . 1 . . Spaces Dug 9 | . . 9 . . . . Terrain Destroyed 49 | . 2 25 . 12 3 7 Melee . | . . . . . . . Projectile 5 | . . . . . 3 2 AOE 44 | . 2 25 . 12 . 5 Terrain Rammed . | . . . . . . . Walls Destroyed . | . . . . . . . Machines Disabled . | . . . . . . . Actions | -11 -10 -10 -10 -9 -8 -8 --------- Run | Scr Mat Min Exi Min Mat Sto Total 1860 | . 413 261 241 142 323 480 Wait 194 | . 57 7 . . 82 48 Move 1408 | . 304 245 241 139 171 308 Hop . | . . . . . . . Pick Up 37 | . 4 4 . 1 12 16 Fast Attach 10 | . 1 . . . 3 6 Attach 19 | . 2 2 . . 6 9 Detach 1 | . . . . . 1 . Swap 31 | . 9 . . . 12 10 Drop 21 | . 4 . . . 5 12 Fire 92 | . 25 3 . 2 31 31 Melee 40 | . . . . . . 40 Ram . | . . . . . . . Kick . | . . . . . . . Crush 7 | . 7 . . . . . Escape Stasis . | . . . . . . . Rewire . | . . . . . . . Trap . | . . . . . . . Miscellaneous . | . . . . . . . Route ------- -11/Scrapyard -10/Materials (discovered 2 exits: [*Mat] / [*Min]) -10/Mines (discovered 2 exits: [*Mat] / *Exi) -10/Exiles -9/Mines (discovered 2 exits: *Mat x2) -8/Materials -8/Storage (discovered 1 exit: [*Rec]) History --------- Turn | Location | Event 1 | -11/Scrapyard | Discovered new exit (range 0) 1 | -11/Scrapyard | Entered Materials 193 | -10/Materials | Discovered new exit (range 7) 316 | -10/Materials | Build established: Mutant 335 | -10/Materials | Discovered new exit (range 10) 534 | -10/Materials | Entered Mines 541 | -10/Mines | YI-UF0 nonchalantly dropped a Grenade Launcher on the ground 570 | -10/Mines | Found a damaged Exp. Sensor Array with a note attached 573 | -10/Mines | Found Prototype Device 787 | -10/Mines | Discovered new exit (range 12) 844 | -10/Mines | Deemed a non-threat by the Exiles lab entrance 846 | -10/Mines | Discovered new exit (range 5) 850 | -10/Mines | Entered Exiles 850 | -10/Exiles | Found Exiles lab destroyed 1075 | -10/Exiles | Learned location of Zion (-6) 1130 | -10/Exiles | Discovered new exit (range 10) 1140 | -10/Exiles | Entered Mines 1165 | -9/Mines | Identified exit to Materials 1182 | -9/Mines | Found a hidden stash of uninstalled traps 1308 | -9/Mines | Discovered exit to Materials (range 6) 1314 | -9/Mines | Entered Materials 1314 | -8/Materials | Evolved 4 slots: Propulsion x2, Utility x2 1439 | -8/Materials | Identified Exp. Sensor Array 1711 | -8/Materials | Lost 4 parts (1n1u2w) 1734 | -8/Materials | Discovered new exit (range 10) 1758 | -8/Materials | Entered Storage 1957 | -8/Storage | Garrison activated, responded to threat 2039 | -8/Storage | Lost 4 parts (2p1u1w) 2090 | -8/Storage | Lost 3 parts (1n2w) 2308 | -8/Storage | Build established: Scavenger-Mutant 2310 | -8/Storage | Used back door to open Recycling access 2310 | -8/Storage | Discovered new exit (range 5) 2485 | -8/Storage | Self-destructed Last Messages --------------- 02377_ Acquired Med. Treads. 02379_ Y-45 Defender destroyed. 02383_ Acquired Lgt. Treads. 02386_ Dropped Lgt. Armor Plating. 02389_ Acquired 30 matter. 02391_ Dropped Imp. Ion Engine. 02395_ Acquired 10 matter. 02399_ R-06 Scavenger collects Lgt. Armor Plating. 02425_ R-06 Scavenger inserts Unknown Engine into recycling unit. 02428_ R-06 Scavenger inserts Lgt. Treads into recycling unit. 02431_ R-06 Scavenger inserts Hammer into recycling unit. 02432_ Recycling unit begins recycling process. 02434_ R-06 Scavenger inserts Lgt. Armor Plating into recycling unit. 02436_ System corrupted: Matter fused (-9). 02441_ O-16 Technician: "IFF HANDSHAKE FAILED. SECURING TERMINAL." 02448_ Destroyed Particle Gun. 02449_ ALERT: Hostiles spotted, dispatching reinforcements to Terminal S011. 02468_ Com. Wheel destroyed. 02482_ System corrupted: Heat flow error (+103). Map ----- +----------------------------------------------------+ | ????????????????????" ## """ # #???# # ## | | ???????????????????? ## # #####/#### | | ????????????????????" "############## # # | | ?????????????????#???G"#????????????# # """""" # | | ?????????????????# ??"?????########## # %!! "?# | | ?????????????????# ????????# !! # # " = "?? | | ?????????????????# ????????# """ != # / """"""?? | | ?????????????????# ######### """ ! # # ???? | | ?????????????????# + """ # # # | | ???????????#"""??# ###### + # # | | ??????# ##"T"### # # """ # # # | | ??????# !! = # *# Y" # ########## | | ??????# !! # # """ # #????????? | | ??????# """ # # # #????????? | | ?????????"Y / ########## ########?? | | ??????? """ # #????????# #?? | | ??????# #! #????????# ### | | ??????? + [ #????????# | | ??????? ##### # [ #????????#########^ | | ??????? ????# ######????????# # T | | ????????+###?????# g #????????????""""" + | | ???????????????###+####g #????????????""""" # | | ???????????????# # ####?????????""""" # | | ??????????????# %/ Y #????????? ?# | | ???????????????#/ " # #????????######?# # | | ???????????????#/ ??# @ #?????########### # | | ???????????????# ????+ a # | | ???????????????#??????############################ | | ?????????????????????????????????????????????????? | | ?????????????????????????????????????????????????? | | ?????????????????????????????????????????????????? | | ?????????????????????????????????????????????????? | | | | | | | | | | | | | | | | | | | | | | | | | | | | | | | | | | | | | +----------------------------------------------------+ Best States ------------- Heat Dissipation 53 Energy Generation 12 Energy Capacity 265 Matter Stores 300 Matter Capacity 300 Sight Range 16 Robot Scan Range 30 Terrain Scan Density 10 Armor Coverage 150 Evasion (%) 40 Recoil Reduction 4 Item Schematics ----------------- None Robot Schematics ------------------ None Fabricated ------------ Nothing Alien Tech Used ----------------- None Achievements -------------- None Challenges ------------ None Game ------ Seed MagneticTiamatTriangulator Manual? 0 Play Time 00:28:31 Cumulative 91.3 hours Start 2021.02.27 @ 22:28:20 End 2021.02.28 @ 18:56:01 Sessions 4 Manual Loads 0 Difficulty Rogue Special Mode None Game No. 166 Rogue 166 Adventurer 0 Explorer 0 Win Type - Total 0 Types 0/0/0/0/0/0/0/0/0 Lore% 57 Gallery% 59 Achievement% 44 Wizard Run 0 Options --------- ASCII 0 Keyboard 1 Movement Numpad Keybinds 0 Fullscreen 2 Font 18/Terminus Map View 76x50 Tactical HUD 1 Map Filters NONE Filters NONE Steam 1 RUN: 9075996b-f8e6-42c8-863d-e8fdb161f937